bitfinex/quotes_BTCUSD_20240721
["timestamp","ask_amount","ask_price","bid_price","bid_amount"]
[1721574689623,0.5382263,67351.0,67350.0,0.05]
[1721574689843,0.5382263,67351.0,67350.0,0.17335185]
[1721574690722,0.5382263,67351.0,67350.0,0.05]
[1721574691364,0.24718204,67351.0,67344.0,1.2465]
[1721574691579,0.742445,67345.0,67344.0,1.2465]
[1721574691806,0.89682674,67345.0,67344.0,1.2465]
[1721574692010,0.89682674,67345.0,67338.0,1.2965]
[1721574692011,0.148502,67339.0,67338.0,1.2965]
[1721574692224,0.1485,67340.0,67339.0,0.05]
[1721574692434,0.4455,67340.0,67339.0,0.05]
[1721574692643,0.45402298,67340.0,67339.0,0.05]
[1721574693274,0.148502,67339.0,67338.0,1.2465]
[1721574693487,0.81881,67339.0,67338.0,1.2465]
[1721574693912,0.89113298,67339.0,67338.0,1.2465]
[1721574694125,1.34251872,67339.0,67338.0,1.2465]
[1721574694364,1.34272568,67339.0,67338.0,1.2465]
[1721574694575,1.44272568,67339.0,67338.0,1.2465]
[1721574694996,1.553666,67339.0,67338.0,1.2465]
[1721574695427,1.55374294,67339.0,67338.0,1.2465]
[1721574695650,0.445585,67327.0,67326.0,1.2965]
[1721574695862,0.445585,67327.0,67326.0,0.05]
[1721574696308,0.15704597,67327.0,67326.0,0.05]
[1721574696528,0.00851797,67327.0,67326.0,0.05]
[1721574696942,0.007,67327.0,67326.0,0.051]
[1721574697148,0.01551797,67327.0,67326.0,0.051]
[1721574697355,0.164528,67327.0,67326.0,0.052]
[1721574697562,0.17314954,67327.0,67326.0,0.052]
[1721574697976,0.02478514,67327.0,67326.0,0.11991748]
[1721574698184,0.02478514,67327.0,67326.0,0.43251748]
[1721574698432,0.016,67327.0,67326.0,0.43251748]
[1721574698859,0.016,67327.0,67326.0,0.4146]
[1721574699077,0.007,67327.0,67326.0,0.414524]
[1721574699299,0.002794,67333.0,67332.0,0.05]
[1721574699515,0.002794,67333.0,67332.0,0.1]
[1721574699730,0.0114107,67333.0,67332.0,0.1]
[1721574699953,0.0086167,67333.0,67332.0,0.1]
[1721574700446,0.0086167,67333.0,67332.0,0.05]
[1721574700654,0.0114107,67333.0,67332.0,0.05]
[1721574700861,0.0234107,67333.0,67332.0,0.051]
[1721574701255,0.0324107,67333.0,67332.0,0.052]
[1721574702718,0.1809257,67333.0,67332.0,0.002]
[1721574702920,0.1781317,67333.0,67332.0,0.002]
[1721574703222,0.41441344,67333.0,67332.0,0.002]
[1721574703600,0.71144444,67333.0,67332.0,0.002]
[1721574704272,1.00847544,67333.0,67332.0,0.002]
[1721574704425,1.05291063,67333.0,67332.0,0.002]
[1721574704631,1.00847544,67333.0,67332.0,0.002]
[1721574705217,1.07514937,67333.0,67332.0,0.002]
[1721574705406,1.05290514,67333.0,67332.0,0.002]
[1721574705615,1.00847544,67333.0,67332.0,0.002]
[1721574706360,1.05290217,67333.0,67332.0,0.002]
[1721574706710,1.00847544,67333.0,67332.0,0.002]
[1721574707490,1.34993317,67333.0,67332.0,0.002]
[1721574707697,1.37214653,67333.0,67332.0,0.002]
[1721574707927,1.40550644,67333.0,67332.0,0.002]
[1721574708331,1.49434538,67333.0,67332.0,0.002]
[1721574708754,1.40550644,67333.0,67332.0,0.002]
[1721574709039,1.6486805,67333.0,67332.0,0.002]
[1721574709312,1.49433093,67333.0,67332.0,0.002]
[1721574710279,1.79136193,67333.0,67332.0,0.002]
[1721574710438,1.76883744,67333.0,67332.0,0.00192283]
[1721574711882,1.47180644,67333.0,67332.0,0.00192283]
[1721574713424,1.58272662,67333.0,67332.0,0.00192283]
[1721574713677,1.73707619,67333.0,67332.0,0.00192283]
[1721574714322,1.73707197,67333.0,67332.0,0.00192283]
[1721574714524,2.05710297,67333.0,67332.0,0.00192283]
[1721574714741,1.94618701,67333.0,67332.0,0.00192283]
[1721574715562,2.05707328,67333.0,67332.0,0.00192283]
[1721574716168,1.49480644,67333.0,67332.0,0.00192283]
[1721574716381,1.56133075,67333.0,67332.0,0.00192283]
[1721574718221,1.49480644,67333.0,67332.0,0.00192283]
[1721574718441,1.47180644,67333.0,67332.0,0.00192283]
[1721574719914,1.51615684,67333.0,67332.0,0.00192283]
[1721574720128,1.49159267,67333.0,67332.0,0.00192283]
[1721574721409,1.47180644,67333.0,67332.0,0.00192283]
[1721574721562,1.5161653,67333.0,67332.0,0.00192283]
[1721574721769,0.77390335,67333.0,67332.0,0.00192283]
[1721574721975,0.72954444,67333.0,67332.0,0.00192283]
[1721574722389,0.72954444,67333.0,67332.0,0.06572283]
[1721574723089,1.02657544,67333.0,67332.0,0.06572283]
[1721574724018,1.02657544,67333.0,67332.0,0.00192283]
[1721574725423,1.32360644,67333.0,67332.0,0.00192283]
[1721574726388,1.02657544,67333.0,67332.0,0.00192283]
[1721574727299,0.72954444,67333.0,67332.0,0.00192283]
[1721574727983,0.28399844,67333.0,67332.0,0.06349511]
[1721574728204,0.28399844,67333.0,67332.0,0.19182283]
[1721574728666,1.02657544,67333.0,67332.0,0.14182283]
[1721574728867,0.72954444,67333.0,67332.0,0.14182283]
[1721574729070,0.72954444,67333.0,67332.0,0.06572283]
[1721574729741,0.43251344,67333.0,67332.0,0.06572283]
[1721574729951,1.02657544,67333.0,67332.0,0.00192283]
[1721574730385,1.36800513,67333.0,67332.0,0.00192283]
[1721574730585,1.36802753,67333.0,67332.0,0.00192283]
[1721574730901,1.07099653,67333.0,67332.0,0.00192283]
[1721574731110,0.72954444,67333.0,67332.0,0.14182283]
[1721574731312,0.77396553,67333.0,67332.0,0.14182283]
[1721574731506,0.47693453,67333.0,67332.0,0.14182283]
[1721574732132,0.77396553,67333.0,67332.0,0.06664683]
[1721574732335,1.15272808,67333.0,67332.0,0.00284683]
[1721574732536,1.15356808,67333.0,67332.0,0.00284683]
[1721574733286,1.08693644,67333.0,67332.0,0.00284683]
[1721574733849,0.49287444,67333.0,67332.0,0.00284683]
[1721574734089,0.55954479,67333.0,67332.0,0.00284683]
[1721574734277,0.78990544,67333.0,67332.0,0.00284683]
[1721574735080,0.49287444,67333.0,67332.0,0.00284683]
[1721574735305,0.87879952,67333.0,67332.0,0.00284683]
[1721574735633,0.8788485,67333.0,67332.0,0.00284683]
[1721574736456,0.90102304,67333.0,67332.0,0.00284683]
[1721574736875,0.34435944,67333.0,67332.0,0.00284683]
[1721574737098,0.34435944,67333.0,67332.0,0.20303151]
[1721574737099,0.1899777,67333.0,67332.0,0.20303151]
[1721574737325,0.1899777,67333.0,67332.0,0.24274683]
[1721574737732,0.1304567,67333.0,67332.0,0.24274683]
[1721574738714,0.19721816,67333.0,67332.0,0.24274683]
[1721574738913,0.09721816,67333.0,67332.0,0.24274683]
[1721574740244,0.0304567,67333.0,67332.0,0.24274683]
[1721574740453,0.09722707,67333.0,67332.0,0.24274683]
[1721574741309,0.0304567,67333.0,67332.0,0.24274683]
[1721574741448,0.0972237,67333.0,67332.0,0.24274683]
[1721574741864,0.0304567,67333.0,67332.0,0.11664683]
[1721574742268,0.09722219,67333.0,67332.0,0.16664683]
[1721574742726,0.09722219,67333.0,67332.0,0.11664683]
[1721574743025,0.09722219,67333.0,67332.0,0.16664683]
[1721574743247,0.09722004,67333.0,67332.0,0.16664683]
[1721574743459,0.0304567,67333.0,67332.0,0.16664683]
[1721574743700,0.09722004,67333.0,67332.0,0.16664683]
[1721574743905,0.0304567,67333.0,67332.0,0.11664683]
[1721574744318,0.0304567,67333.0,67332.0,0.16664683]
[1721574745090,0.1789717,67333.0,67332.0,0.11664683]
[1721574745294,0.0304567,67333.0,67332.0,0.11664683]
[1721574746113,1.03869841,67333.0,67332.0,0.00284683]
[1721574746371,1.47014644,67333.0,67332.0,0.00284683]
[1721574746568,1.76717744,67333.0,67332.0,0.00284683]
[1721574747171,1.47014644,67333.0,67332.0,0.00284683]
[1721574748256,1.62449601,67333.0,67332.0,0.00284683]
[1721574750744,1.47014644,67333.0,67332.0,0.00284683]
[1721574751937,1.67120244,67333.0,67332.0,0.00284683]
[1721574752143,1.67120244,67333.0,67326.0,0.000924]
[1721574752144,1.039699,67327.0,67326.0,0.000924]
[1721574752305,1.89487288,67327.0,67326.0,0.000924]
[1721574752512,2.40902691,67327.0,67326.0,0.000924]
[1721574752726,1.039885,67315.0,67314.0,0.35682679]
[1721574752947,1.49488867,67315.0,67314.0,0.35682679]
[1721574753367,1.039916,67313.0,67312.0,1.2465]
[1721574753562,0.74283,67310.0,67308.0,0.000924]
[1721574753776,0.89721174,67310.0,67308.0,0.000924]
[1721574753978,1.00505993,67310.0,67308.0,0.000924]
[1721574754178,1.30219193,67310.0,67308.0,0.000924]
[1721574755636,1.31619193,67310.0,67308.0,0.000924]
[1721574755836,1.33019193,67310.0,67308.0,0.000924]
[1721574756190,1.4845415,67310.0,67308.0,0.000924]
[1721574756449,1.8623735,67310.0,67308.0,0.000924]
[1721574756664,2.77374522,67310.0,67308.0,0.000924]
[1721574756860,1.039979,67309.0,67308.0,0.000924]
[1721574757065,1.61729174,67309.0,67308.0,0.000924]
[1721574757332,1.62509645,67309.0,67308.0,0.000924]
[1721574757963,1.46132072,67309.0,67308.0,0.000924]
[1721574758198,1.30495945,67309.0,67308.0,0.000924]
[1721574758413,1.31616545,67309.0,67308.0,0.000924]
[1721574759262,1.30216545,67309.0,67308.0,0.000924]
[1721574759469,1.31616545,67309.0,67308.0,0.000924]
[1721574759830,1.47051502,67309.0,67308.0,0.000924]
[1721574760427,1.4271936,67309.0,67308.0,0.000924]
[1721574760636,1.03302845,67309.0,67308.0,0.000924]
[1721574760841,0.82471082,67309.0,67308.0,0.000924]
[1721574761054,1.10784782,67309.0,67308.0,0.000924]
[1721574761408,1.01902845,67309.0,67308.0,0.000924]
[1721574761862,1.03302845,67309.0,67308.0,0.000924]
[1721574762492,1.09961762,67309.0,67308.0,0.000924]
[1721574762901,1.09961766,67309.0,67308.0,0.000924]
[1721574763547,0.80248066,67309.0,67308.0,0.000924]
[1721574763758,0.73589145,67309.0,67308.0,0.000924]
[1721574763970,0.73594193,67309.0,67308.0,0.000924]
[1721574764177,1.03307893,67309.0,67308.0,0.000924]
[1721574764592,0.29023693,67309.0,67308.0,0.050924]
[1721574764794,0.29023693,67309.0,67308.0,0.131724]
[1721574764795,0.29018645,67309.0,67308.0,0.131724]
[1721574765217,0.43875445,67309.0,67308.0,0.131724]
[1721574765625,0.27623471,67309.0,67308.0,0.131724]
[1721574765828,0.27323471,67309.0,67308.0,0.131724]
[1721574767058,0.42180271,67309.0,67308.0,0.131724]
[1721574767271,0.42180271,67309.0,67308.0,0.081724]
[1721574767891,0.43575445,67309.0,67308.0,0.081724]
[1721574768312,0.28718645,67309.0,67308.0,0.131724]
[1721574769338,0.12180471,67309.0,67308.0,0.246124]
[1721574769552,0.10780471,67309.0,67308.0,0.246124]
[1721574769759,0.11680471,67309.0,67308.0,0.246124]
[1721574770189,0.11680471,67309.0,67308.0,0.196124]
[1721574770615,0.01680471,67309.0,67308.0,0.196124]
[1721574771036,1.29986545,67309.0,67308.0,0.000924]
[1721574771442,1.39093309,67309.0,67308.0,0.000924]
[1721574771881,1.39793309,67309.0,67308.0,0.000924]
[1721574772304,1.37893309,67309.0,67308.0,0.000924]
[1721574772712,1.39993309,67309.0,67308.0,0.000924]
[1721574773543,1.39093309,67309.0,67308.0,0.000924]
[1721574774059,1.37893309,67309.0,67308.0,0.000924]
[1721574774584,1.39293309,67309.0,67308.0,0.000924]
[1721574774835,1.37893309,67309.0,67308.0,0.000924]
[1721574775041,1.56128266,67309.0,67308.0,0.000924]
[1721574775646,1.54728266,67309.0,67308.0,0.000924]
[1721574775837,1.56128266,67309.0,67308.0,0.000924]
[1721574776620,1.54728266,67309.0,67308.0,0.000924]
[1721574777054,1.56128266,67309.0,67308.0,0.000924]
[1721574777251,1.69007009,67309.0,67308.0,0.000924]
[1721574777503,1.70407009,67309.0,67308.0,0.000924]
[1721574777710,1.77061831,67309.0,67308.0,0.000924]
[1721574778119,1.78461831,67309.0,67308.0,0.000924]
[1721574778321,1.93896788,67309.0,67308.0,0.000924]
[1721574778525,1.93896788,67309.0,67296.0,0.35682679]
[1721574778526,1.040165,67297.0,67296.0,0.35682679]
[1721574778732,1.040165,67297.0,67293.0,1.2465]
[1721574778733,0.445804,67294.0,67293.0,1.2465]
[1721574778961,1.29459174,67294.0,67293.0,1.2465]
[1721574779163,0.99738874,67294.0,67293.0,1.2465]
[1721574780916,1.00038874,67294.0,67293.0,1.2465]
[1721574781368,1.00638874,67294.0,67293.0,1.2465]
[1721574782173,0.70918574,67294.0,67293.0,1.2465]
[1721574782333,0.26338174,67294.0,67293.0,1.2965]
[1721574782534,0.56058574,67294.0,67290.0,0.05]
[1721574782757,0.25438174,67293.0,67290.0,0.05]
[1721574782954,0.55159074,67293.0,67290.0,0.05]
[1721574783135,0.25438174,67293.0,67290.0,0.05]
[1721574783335,0.148608,67291.0,67290.0,0.05]
[1721574783543,0.25438174,67291.0,67289.0,0.1144]
[1721574783740,0.15438174,67291.0,67289.0,0.1144]
[1721574783950,0.15438174,67291.0,67290.0,0.05]
[1721574784157,0.15438174,67291.0,67290.0,0.1877]
[1721574784158,0.25438174,67291.0,67290.0,0.1877]
[1721574784564,0.11073843,67291.0,67290.0,0.2377]
[1721574785213,0.01073843,67291.0,67290.0,0.2377]
[1721574787423,0.01073843,67291.0,67290.0,0.1377]
[1721574787628,0.01073843,67291.0,67290.0,0.1877]
[1721574788221,0.01073843,67291.0,67290.0,0.2377]
[1721574789500,0.15934643,67291.0,67290.0,0.1877]
[1721574789711,0.25934643,67291.0,67290.0,0.1377]
[1721574789922,0.25934643,67291.0,67285.0,1.3262]
[1721574789923,0.148619,67286.0,67285.0,1.3262]
[1721574790124,0.89747674,67286.0,67285.0,1.3262]
[1721574790342,0.90650822,67286.0,67285.0,1.3262]
[1721574790547,0.90650822,67286.0,67285.0,1.3915]
[1721574790775,0.60927022,67286.0,67285.0,1.3915]
[1721574792000,0.60927022,67286.0,67285.0,1.4415]
[1721574792204,0.31303222,67286.0,67285.0,1.4415]
[1721574792416,0.16441322,67286.0,67285.0,1.4415]
[1721574792629,0.01003148,67286.0,67285.0,1.56496146]
[1721574792845,0.01003148,67286.0,67285.0,1.76931103]
[1721574793044,0.001,67286.0,67285.0,1.61496146]
[1721574793459,0.001,67286.0,67285.0,1.56496146]
[1721574793670,0.001,67286.0,67285.0,1.61496146]
[1721574794498,0.001,67286.0,67285.0,0.245]
[1721574794701,0.001,67286.0,67285.0,0.368461]
[1721574794904,0.001,67286.0,67285.0,0.318461]
[1721574795111,0.60123874,67286.0,67285.0,0.145]
[1721574795531,0.61027097,67286.0,67285.0,0.145]
[1721574796360,0.61027097,67286.0,67285.0,0.0653]
[1721574796577,0.90750897,67286.0,67285.0,0.0653]
[1721574796780,0.61027097,67286.0,67285.0,0.0653]
[1721574797409,0.61027097,67286.0,67285.0,0.1653]
[1721574798051,0.31303297,67286.0,67285.0,0.2153]
[1721574798707,0.90750897,67286.0,67285.0,0.1]
[1721574798945,0.61027097,67286.0,67285.0,0.15]
[1721574799352,0.61027097,67286.0,67285.0,0.2251]
[1721574800567,0.31303297,67286.0,67285.0,0.2885]
[1721574800773,0.61027097,67286.0,67285.0,0.2385]
[1721574801591,0.01003223,67286.0,67285.0,0.3385]
[1721574802217,0.01003223,67286.0,67285.0,0.339424]
[1721574802625,0.001,67286.0,67285.0,0.339424]
[1721574804913,0.0094074,67286.0,67285.0,0.264324]
[1721574805113,0.001,67286.0,67285.0,0.264324]
[1721574805317,0.00940607,67286.0,67285.0,0.264324]
[1721574805508,0.06679145,67289.0,67288.0,0.05]
[1721574805708,0.148612,67289.0,67288.0,0.05]
[1721574805856,0.21540316,67289.0,67288.0,0.05]
[1721574806609,0.148612,67289.0,67288.0,0.05]
[1721574806814,0.445837,67289.0,67288.0,0.05]
[1721574807150,0.445857,67286.0,67285.0,0.100924]
[1721574807361,0.89747674,67286.0,67285.0,0.100924]
[1721574807767,0.60023874,67286.0,67285.0,0.100924]
[1721574808769,0.60123874,67286.0,67285.0,0.101924]
[1721574809276,0.60023874,67286.0,67285.0,0.100924]
[1721574809691,0.60423874,67286.0,67285.0,0.150924]
[1721574810209,0.011,67286.0,67285.0,0.339424]
[1721574810616,0.011,67286.0,67285.0,0.46288732]
[1721574810862,0.01940415,67286.0,67285.0,0.46288732]
[1721574811293,0.011,67286.0,67285.0,0.46288732]
[1721574812355,0.007,67286.0,67285.0,0.46288732]
[1721574812800,0.008,67286.0,67285.0,0.46288732]
[1721574813013,0.001,67286.0,67285.0,0.46288732]
[1721574813227,0.1,67291.0,67285.0,0.46288732]
[1721574813475,0.1,67291.0,67290.0,0.1]
[1721574813897,0.16680907,67292.0,67290.0,0.1]
[1721574814391,0.31541507,67292.0,67291.0,0.1]
[1721574814602,0.1,67292.0,67291.0,0.1]
[1721574816531,0.18907876,67292.0,67291.0,0.1]
[1721574816734,0.19307876,67292.0,67291.0,0.1]
[1721574816918,0.34168476,67292.0,67291.0,0.05]
[1721574817122,0.34168476,67292.0,67289.0,0.05]
[1721574817123,0.56259374,67292.0,67289.0,0.05]
[1721574817269,0.14861,67290.0,67289.0,0.05]
[1721574817473,0.6893558,67290.0,67289.0,0.05]
[1721574817680,0.148615,67288.0,67286.0,0.05]
[1721574817898,0.15438174,67287.0,67286.0,0.05]
[1721574818103,0.2212493,67287.0,67285.0,0.194324]
[1721574818304,0.2212493,67287.0,67285.0,0.130924]
[1721574818305,0.445857,67286.0,67285.0,0.130924]
[1721574818518,1.00890682,67286.0,67285.0,0.130924]
[1721574820268,0.89747674,67286.0,67285.0,0.131924]
[1721574820447,1.00894712,67286.0,67285.0,0.131924]
[1721574820687,0.99747674,67286.0,67285.0,0.131924]
[1721574821591,1.00447674,67286.0,67285.0,0.130924]
[1721574821766,1.00847674,67286.0,67285.0,0.130924]
[1721574822420,1.00447674,67286.0,67285.0,0.130924]
[1721574822590,1.01147674,67286.0,67285.0,0.125924]
[1721574823385,0.71423874,67286.0,67285.0,0.115924]
[1721574823643,0.70723874,67286.0,67285.0,0.115924]
[1721574824001,0.71923874,67286.0,67285.0,0.115924]
[1721574824502,0.73023874,67286.0,67285.0,0.115924]
[1721574824875,0.43300074,67286.0,67285.0,0.115924]
[1721574825088,0.43300074,67286.0,67285.0,0.165924]
[1721574825509,0.13,67286.0,67285.0,0.293124]
[1721574825712,0.119198,67286.0,67285.0,0.357224]
[1721574825867,0.219198,67286.0,67285.0,0.357224]
[1721574826064,0.21919579,67286.0,67285.0,0.357224]
[1721574826383,0.21919579,67286.0,67285.0,0.180024]
[1721574826384,0.58161974,67286.0,67285.0,0.180024]
[1721574826589,0.73023874,67286.0,67285.0,0.180024]
[1721574826872,0.63023874,67286.0,67285.0,0.180024]
[1721574827307,0.74173943,67286.0,67285.0,0.180024]
[1721574828134,0.74173943,67286.0,67285.0,0.115924]
[1721574828135,1.24384595,67286.0,67285.0,0.115924]
[1721574828344,1.13234526,67286.0,67285.0,0.115924]
[1721574828548,1.42958326,67286.0,67285.0,0.115924]
[1721574829170,1.32471474,67286.0,67285.0,0.115924]
[1721574829383,1.29471474,67286.0,67285.0,0.115924]
[1721574829588,1.30309107,67286.0,67285.0,0.115924]
[1721574829795,1.32809107,67286.0,67285.0,0.115924]
[1721574830841,1.62532907,67286.0,67285.0,0.115924]
[1721574831044,1.77967864,67286.0,67285.0,0.115924]
[1721574831655,1.62532907,67286.0,67285.0,0.115924]
[1721574835399,1.70672907,67286.0,67285.0,0.115924]
[1721574836057,1.70672907,67286.0,67285.0,0.51767266]
[1721574836058,2.63550907,67286.0,67285.0,0.51767266]
[1721574836237,2.32232907,67286.0,67285.0,0.50905969]
[1721574836387,1.84332907,67286.0,67285.0,0.50905969]
[1721574836590,1.99364245,67286.0,67285.0,0.50905969]
[1721574837048,2.13399202,67286.0,67285.0,0.50905969]
[1721574837379,2.31902802,67286.0,67285.0,0.50905969]
[1721574837491,2.30802802,67286.0,67285.0,0.50998369]
[1721574837690,2.32202802,67286.0,67285.0,0.50998369]
[1721574837955,2.32202802,67286.0,67285.0,0.41426969]
[1721574838156,2.30886802,67286.0,67285.0,0.41426969]
[1721574838361,2.29486802,67286.0,67285.0,0.41426969]
[1721574838533,2.47936802,67286.0,67285.0,0.39126969]
[1721574838735,2.32905464,67286.0,67285.0,0.39126969]
[1721574839143,2.31505464,67286.0,67285.0,0.32460969]
[1721574839341,2.31505464,67286.0,67285.0,0.17587969]
[1721574839342,3.02629264,67286.0,67285.0,0.17587969]
[1721574840113,3.02629264,67286.0,67285.0,0.15187969]
[1721574840345,3.02629264,67286.0,67285.0,0.024]
[1721574840544,3.01229264,67286.0,67285.0,0.024]
[1721574840748,1.494192,67280.0,67279.0,0.000924]
[1721574841037,0.445996,67265.0,67261.0,0.002]
[1721574841253,1.1553794,67265.0,67261.0,0.002]
[1721574841453,1.2553794,67265.0,67261.0,0.002]
[1721574841792,1.5527104,67265.0,67261.0,0.002]
[1721574842025,0.93208087,67265.0,67263.0,0.062]
[1721574842230,0.61250196,67265.0,67263.0,0.13917479]
[1721574842429,0.89858381,67265.0,67263.0,0.18917479]
[1721574842754,0.8318484,67265.0,67263.0,0.18917479]
[1721574842983,0.8318484,67265.0,67261.0,0.002]
[1721574842984,1.49324581,67265.0,67261.0,0.002]
[1721574843192,1.49322923,67265.0,67261.0,0.002]
[1721574843413,1.4265104,67265.0,67261.0,0.002]
[1721574843925,1.4405104,67265.0,67261.0,0.002]
[1721574844122,1.45050393,67265.0,67261.0,0.002]
[1721574845074,1.15317293,67265.0,67264.0,0.145818]
[1721574846377,0.85584193,67265.0,67264.0,0.145818]
[1721574847090,0.3998524,67265.0,67264.0,0.195818]
[1721574847746,0.03331018,67265.0,67264.0,0.245818]
[1721574848189,0.025,67265.0,67264.0,0.245818]
[1721574848668,0.014,67265.0,67264.0,0.245818]
[1721574848883,0.148639,67277.0,67276.0,0.1415]
[1721574849084,0.25438174,67277.0,67276.0,0.1915]
[1721574849284,0.26544303,67277.0,67276.0,0.1915]
[1721574849494,0.26544303,67277.0,67276.0,0.1415]
[1721574849744,0.16544303,67277.0,67276.0,0.2415]
[1721574850197,0.1626749,67277.0,67276.0,0.2415]
[1721574851051,0.25438174,67277.0,67276.0,0.2415]
[1721574851252,0.26269044,67277.0,67276.0,0.2415]
[1721574851477,0.1213087,67277.0,67276.0,0.2415]
[1721574851665,0.1213087,67277.0,67276.0,0.1915]
[1721574851867,0.123,67277.0,67276.0,0.2415]
[1721574852069,0.023,67277.0,67276.0,0.2415]
[1721574852814,0.1757347,67277.0,67276.0,0.2415]
[1721574853033,0.26738174,67277.0,67276.0,0.2415]
[1721574853239,0.2757347,67277.0,67276.0,0.2415]
[1721574853817,0.2627347,67277.0,67276.0,0.2415]
[1721574854015,0.2687347,67277.0,67276.0,0.2415]
[1721574854228,0.2757347,67277.0,67276.0,0.2415]
[1721574854602,0.2687347,67277.0,67276.0,0.2415]
[1721574854801,0.2747347,67277.0,67276.0,0.2415]
[1721574855009,0.2777347,67277.0,67276.0,0.2415]
[1721574855416,0.2747347,67277.0,67276.0,0.2415]
[1721574855658,0.2627347,67277.0,67276.0,0.2415]
[1721574855834,0.2657347,67277.0,67276.0,0.2415]
[1721574857115,0.65139202,67277.0,67272.0,0.0655]
[1721574857399,0.148646,67274.0,67272.0,0.0655]
[1721574857573,0.297288,67275.0,67272.0,0.0655]
[1721574857574,0.60032574,67273.0,67272.0,0.0655]
[1721574857857,0.31138658,67273.0,67272.0,0.0655]
[1721574858480,0.31138658,67273.0,67269.0,0.0638]
[1721574858481,0.148654,67270.0,67269.0,0.0638]
[1721574858691,0.60870143,67270.0,67269.0,0.0638]
[1721574858905,0.445977,67268.0,67267.0,1.2465]
[1721574859118,0.89767674,67268.0,67267.0,1.2465]
[1721574859345,0.89767674,67268.0,67264.0,0.36104479]
[1721574859346,0.445996,67265.0,67264.0,0.004218]
[1721574859549,0.60037774,67265.0,67264.0,0.004218]
[1721574859755,0.60872173,67265.0,67264.0,0.004218]
[1721574860172,0.90605273,67265.0,67264.0,0.004218]
[1721574860807,0.97275818,67265.0,67264.0,0.004218]
[1721574861009,1.00605273,67265.0,67264.0,0.004218]
[1721574861160,1.07675818,67265.0,67264.0,0.004218]
[1721574861743,1.02405273,67265.0,67264.0,0.004218]
[1721574861943,1.08675403,67265.0,67264.0,0.004218]
[1721574862547,1.11275403,67265.0,67264.0,0.004218]
[1721574862747,1.04605273,67265.0,67264.0,0.004218]
[1721574863573,1.06005273,67265.0,67264.0,0.004218]
[1721574863978,1.12676275,67265.0,67264.0,0.004218]
[1721574864189,1.12676317,67265.0,67264.0,0.004218]
[1721574864392,1.27857867,67265.0,67264.0,0.004218]
[1721574865326,1.57590967,67265.0,67264.0,0.004218]
[1721574865530,1.50919923,67265.0,67264.0,0.004218]
[1721574865953,1.59814649,67265.0,67264.0,0.004218]
[1721574866145,1.14900349,67265.0,67264.0,0.004218]
[1721574866576,1.35738373,67265.0,67264.0,0.004218]
[1721574866798,1.06005273,67265.0,67264.0,0.004218]
[1721574866994,1.35738373,67265.0,67264.0,0.004218]
[1721574867168,1.06005273,67265.0,67264.0,0.004218]
[1721574868255,1.20853021,67265.0,67264.0,0.004218]
[1721574868402,1.50586121,67265.0,67264.0,0.004218]
[1721574869160,1.35738373,67265.0,67264.0,0.004218]
[1721574869291,1.06005273,67265.0,67264.0,0.004218]
[1721574870743,1.35738373,67265.0,67264.0,0.004218]
[1721574871171,1.06005273,67265.0,67264.0,0.004218]
[1721574871672,1.14901384,67265.0,67264.0,0.004218]
[1721574872260,1.06005273,67265.0,67264.0,0.004218]
[1721574873110,1.06005273,67265.0,67264.0,0.068018]
[1721574873512,0.82946806,67265.0,67264.0,0.118018]
[1721574873715,0.31672573,67265.0,67264.0,0.118018]
[1721574873936,0.31672573,67265.0,67264.0,0.195518]
[1721574874768,0.28872573,67265.0,67264.0,0.195518]
[1721574874965,0.30272573,67265.0,67264.0,0.195518]
[1721574875570,0.31472573,67265.0,67264.0,0.245518]
[1721574875824,0.28872573,67265.0,67264.0,0.245518]
[1721574876799,0.30072573,67265.0,67264.0,0.245518]
[1721574877018,0.30972573,67265.0,67264.0,0.245518]
[1721574878792,0.45839073,67265.0,67264.0,0.195518]
[1721574879240,1.05305273,67265.0,67264.0,0.068018]
[1721574879443,1.05305273,67265.0,67264.0,0.004218]
[1721574879444,1.11980315,67265.0,67264.0,0.004218]
[1721574879643,1.2074023,67265.0,67264.0,0.004218]
[1721574880080,1.29642087,67265.0,67264.0,0.004218]
[1721574880454,1.1420713,67265.0,67264.0,0.004218]
[1721574881776,0.75572173,67265.0,67264.0,0.004218]
[1721574881982,0.75572173,67265.0,67264.0,0.195418]
[1721574881983,0.45839073,67265.0,67264.0,0.195418]
[1721574882838,0.82248516,67265.0,67264.0,0.145418]
[1721574883044,0.82248601,67265.0,67264.0,0.145418]
[1721574883985,0.82248601,67265.0,67264.0,0.195418]
[1721574883986,0.30972573,67265.0,67264.0,0.195418]
[1721574884192,0.30972573,67265.0,67264.0,0.245418]
[1721574884571,0.31239004,67265.0,67264.0,0.245418]
[1721574884979,0.309631,67265.0,67264.0,0.245418]
[1721574885394,0.31238426,67265.0,67264.0,0.245418]
[1721574885608,0.30963338,67265.0,67264.0,0.245418]
[1721574885808,0.45829838,67265.0,67264.0,0.195418]
[1721574886035,0.45829838,67265.0,67264.0,0.145418]
[1721574886238,0.30963338,67265.0,67264.0,0.145418]
[1721574886441,0.30963338,67265.0,67264.0,0.245418]
[1721574886589,0.45829838,67265.0,67264.0,0.145418]
[1721574886791,0.30963338,67265.0,67264.0,0.145418]
[1721574887015,0.45829838,67265.0,67264.0,0.145418]
[1721574887217,0.45829838,67265.0,67264.0,0.195418]
[1721574887721,0.30963338,67265.0,67264.0,0.195418]
[1721574888330,0.45829838,67265.0,67264.0,0.195418]
[1721574889141,0.30963338,67265.0,67264.0,0.245418]
[1721574889332,0.15525164,67265.0,67264.0,0.245418]
[1721574889536,0.05525164,67265.0,67264.0,0.8487428]
[1721574889735,0.05525164,67265.0,67264.0,0.81491708]
[1721574890011,0.047,67265.0,67264.0,0.81491708]
[1721574890676,0.026,67265.0,67264.0,0.51758208]
[1721574890914,0.026,67265.0,67264.0,0.36991508]
[1721574891390,0.148645,67274.0,67269.0,0.05]
[1721574891608,0.148657,67269.0,67267.0,0.05]
[1721574891814,0.15438174,67268.0,67267.0,0.05]
[1721574891991,0.16267767,67268.0,67267.0,0.05]
[1721574892509,0.00829593,67268.0,67267.0,0.1]
[1721574892646,0.248646,67274.0,67271.0,0.05]
[1721574892854,0.31133034,67273.0,67271.0,0.05]